[Event "87th Tata Steel Masters 2025"]
[White "Gukesh,Dommaraju"]
[Black "Mendonca,Leon Luke"]
[Site "Wijk aan Zee"]
[Round "9.3"]
[Annotator "TA"]
[Result "1-0"]
[Date "2025.01.28"]
[WhiteElo "2777"]
[BlackElo "2639"]
[PlyCount "85"]
[TimeControl "60"]

{[%evp 12,85,41,14,75,10,16,0,0,0,2,5,15,0,31,0,90,22,13,19,18,19,32,0,34,31,32,30,33,23,48,35,48,58,60,55,46,19,34,17,62,27,65,33,87,0,31,43,108,102,97,103,155,166,199,157,234,240,250,218,227,215,225,235,230,208,224,211,614,594,678,666,1714,1545,4008,3500]} 1. e4 {[%emt 0:0:6]} e5 {[%emt 0:0:49]} 2. Nf3 {[%emt 0:0:7]} Nc6 {[%emt 0:0:33]} 3. Bb5 {[%emt 0:0:9]} a6 {[%emt 0:0:19]} 4. Ba4 {[%emt 0:0:5]} Nf6 {[%emt 0:0:17]} 5. O-O {[%emt 0:0:7]} b5 {[%emt 0:1:5]} 6. Bb3 {[%emt 0:0:7]} Bc5 {[%emt 0:0:6] is now debated instead of 6...Be7.} 7. a4 {[%emt 0:4:51] and axb5 should not be overlooked} Rb8 {[%emt 0:0:46] C78: Ruy Lopez: Archangelsk and Möller Defences.} (7... Bb7 $11 )8. d3 {[%emt 0:0:9]} (8. axb5 $16 axb5 9. Nxe5 Nxe5 10. d4 Bxd4 11. Qxd4 )d6 {[%emt 0:6:31]} 9. Bg5 $5 {[%emt 0:4:38][%mdl 4] An interesting side line.} h6 {[%emt 0:0:6] The position is equal.} 10. Bh4 {[%emt 0:0:33]} g5 {[%emt 0:0:21]} 11. Bg3 {[%emt 0:1:33]} O-O {[%emt 0:0:39]} 12. c3 {[%emt 0:1:5]} Bb6 {[%emt 0:3:24]} (12... b4 $5 )13. Na3 {[%emt 0:6:36]} Ne7 $146 {[%emt 0:2:54]} (13... b4 $11 {remains equal.} 14. Nc4 bxc3 15. bxc3 Ba7 )(13... b4 14. Nc4 bxc3 15. bxc3 Na5 16. Nxa5 Bxa5 17. Qc2 Nh5 18. Nd2 c6 19. Nc4 Bc7 {½-½ Balogh,C (2583)-Lalic,B (2393) CRO-chT1A 30th 2022 (4.1)} )14. Nc2 {[%emt 0:5:33]} ({White should try} 14. axb5 $16 axb5 15. Re1 (15. Nxb5 Ng6 $11 ))Ng6 {[%emt 0:2:37]} 15. Ne3 {[%emt 0:2:8]} Bxe3 {[%emt 0:19:15]} 16. fxe3 {[%emt 0:0:7] A sharp opening} Kg7 {[%emt 0:0:48]} 17. Bc2 {[%emt 0:7:5]} c5 {[%emt 0:22:34]} 18. axb5 {[%emt 0:4:27]} axb5 {[%emt 0:0:17]} 19. b4 {[%emt 0:0:9]} cxb4 {[%emt 0:8:14]} 20. cxb4 {[%emt 0:0:43]} Qe7 {[%emt 0:0:52]} 21. Ra5 {[%emt 0:1:33]} Bd7 {[%emt 0:2:9]} 22. d4 {[%emt 0:17:28]} Bc6 {[%emt 0:11:49]} 23. Qa1 {[%emt 0:12:0][%cal Rd4e5]} Rfe8 $1 {[%emt 0:6:49]} 24. Bb3 {[%emt 0:3:37]} Ra8 {[%emt 0:3:2] Prevents Ra7.} (24... Nxe4 $2 {is the wrong capture.} 25. dxe5 (25. Nxe5 dxe5 26. Rxf7+ Qxf7 $16 )Nxg3 26. exd6+ Qf6 27. Qxf6+ (27. hxg3 Qxa1 28. Raxa1 Bxf3 $16 )Kxf6 28. hxg3 $18 )25. Nd2 {[%emt 0:19:44]} Rf8 {[%emt 0:2:32]} 26. Bc2 $36 {[%emt 0:2:44][%mdl 2048] White is more active.} Nh5 {[%emt 0:2:10]} 27. Be1 {[%emt 0:0:48]} Nf6 {[%emt 0:0:24]} (27... Rfc8 $14 )28. Rf5 {[%emt 0:1:59]} (28. d5 $16 Bb7 29. Nb3 )Rxa5 {[%emt 0:4:52]} 29. bxa5 {[%emt 0:0:5]} Re8 {[%emt 0:4:35]} ({Better is} 29... Rc8 $14 )30. d5 $16 {[%emt 0:3:22]} Bd7 {[%emt 0:0:29]} 31. Rf2 {[%emt 0:0:4]} Bc8 {[%emt 0:3:29]} (31... Ra8 $142 )32. Nf1 {[%emt 0:0:31]} Qa7 {[%emt 0:0:50]} 33. Qa3 {[%emt 0:1:24]} Rd8 {[%emt 0:0:40]} (33... Ng4 $16 )34. Bb4 $18 {[%emt 0:1:10]} Ne8 {[%emt 0:0:22]} 35. Ng3 {[%emt 0:0:46]} Ne7 {[%emt 0:0:23][%cal Yg6e7,Ye7g8,Yg8f6][%mdl 32]} 36. Bd1 {[%emt 0:1:52][%cal Yc2d1,Yd1e2,Ye2d3][%mdl 32]} Ng8 {[%emt 0:0:51]} 37. Be2 {[%emt 0:2:12]} Qb7 {[%emt 0:0:27]} 38. Bd3 {[%emt 0:2:47]} Ngf6 {[%emt 0:0:30]} 39. Rc2 {[%emt 0:0:13]} Bd7 $2 {[%emt 0:0:35]} (39... Kg8 40. Be2 (40. Rc6 Qa7 $18 )Qa7 41. Bxb5 Bd7 )40. Bxd6 {[%emt 0:0:57] White is clearly winning.} Nxd6 {[%emt 0:0:25]} 41. Qxd6 {[%emt 0:53:8]} Qa7 {[%emt 0:1:13]} 42. Qxe5 {[%emt 0:0:0] [#] Intending Nh5+ and mate.} Qxe3+ {[%emt 0:1:0]} 43. Rf2 {[%emt 0:0:0] Weighted Error Value: White=0.24 (precise) /Black=0.63  Mistake:       	White=3     	Black=6      Inaccurate:     	White=5     	Black=6      OK:         	White=13    	Black=7      Best:        	White=1     	---        Strong:       	---       	Black=1} 1-0

[Event "87th Tata Steel Masters 2025"]
[White "Caruana,Fabiano"]
[Black "Abdusattorov,Nodirbek"]
[Site "Wijk aan Zee"]
[Round "9.4"]
[Annotator "TA"]
[Result "1/2-1/2"]
[Date "2025.01.28"]
[WhiteElo "2803"]
[BlackElo "2768"]
[PlyCount "64"]
[TimeControl "60"]

{[%evp 9,64,6,0,3,10,0,13,5,12,8,11,16,16,10,16,9,8,14,14,9,12,10,11,14,13,7,6,4,9,10,31,27,24,23,23,23,28,29,33,19,33,15,12,5,25,24,23,26,43,10,102,16,18,12,14,0,13]} 1. d4 {[%emt 0:0:7]} d5 {[%emt 0:0:17]} 2. Nf3 {[%emt 0:0:5]} Nf6 {[%emt 0:0:11]} 3. c3 {[%emt 0:0:5]} a5 {[%emt 0:3:15]} 4. Bf4 {[%emt 0:0:27]} Bf5 {[%emt 0:0:10]} 5. Nbd2 {[%emt 0:1:39]} h6 {[%emt 0:1:8]} 6. e3 {[%emt 0:8:41]} e6 {[%emt 0:0:30]} 7. Qb3 {[%emt 0:0:44]} Ra7 {[%emt 0:1:27]} 8. a4 {[%emt 0:2:58]} Be7 {[%emt 0:5:13]} 9. Be2 {[%emt 0:3:53]} Nbd7 {[%emt 0:0:19]} 10. h3 {[%emt 0:0:50]} O-O {[%emt 0:5:14]} 11. O-O {[%emt 0:0:45]} c6 {[%emt 0:1:49]} 12. Rfc1 {[%emt 0:1:48]} Ne4 {[%emt 0:4:18]} 13. Nxe4 {[%emt 0:7:1]} Bxe4 {[%emt 0:0:9]} 14. Qd1 {[%emt 0:0:45]} Bxf3 {[%emt 0:5:20]} 15. Bxf3 {[%emt 0:0:14]} Nf6 {[%emt 0:0:6][%cal Yd7f6,Yf6e8,Ye8d6][%mdl 32]} 16. Rab1 {[%emt 0:8:38]} Bd6 {[%emt 0:0:40]} 17. Bxd6 {[%emt 0:0:22]} Qxd6 {[%emt 0:0:6]} 18. b4 {[%emt 0:0:4]} axb4 {[%emt 0:3:32]} 19. Rxb4 {[%emt 0:1:57]} Qe7 {[%emt 0:9:59]} 20. Qb3 {[%emt 0:3:1]} Ne8 {[%emt 0:2:46]} 21. c4 {[%emt 0:3:40]} dxc4 {[%emt 0:0:10]} 22. Qxc4 {[%emt 0:6:27]} Nd6 {[%emt 0:0:10]} 23. Qd3 {[%emt 0:1:18]} Rfa8 {[%emt 0:2:36]} 24. Bd1 {[%emt 0:0:8]} Ra5 {[%emt 0:0:20]} 25. Rcb1 {[%emt 0:12:40]} g6 {[%emt 0:2:5]} 26. Bc2 {[%emt 0:1:21]} Rd8 {[%emt 0:6:25]} (26... c5 {feels hotter.} 27. Rb6 cxd4 28. Qxd4 R8a6 )27. Qc3 {[%emt 0:6:15]} Rd7 {[%emt 0:14:16]} 28. e4 {[%emt 0:2:30]} Ra8 {[%emt 0:4:5]} 29. Qc5 {[%emt 0:14:11]} Rad8 {[%emt 0:0:6]} (29... Qg5 $11 )30. Bd3 {[%emt 0:2:15] White is more active.} (30. e5 $16 Nf5 31. Qxe7 Rxe7 32. Rxb7 Rxb7 33. Rxb7 Nxd4 34. Be4 )Qg5 $11 {[%emt 0:4:27] The position is equal.} 31. Qxg5 {[%emt 0:11:0]} hxg5 {[%emt 0:0:7]} 32. f3 {[%emt 0:4:7]} Kg7 {[%emt 0:8:16] Weighted Error Value: White=0.10 (very precise) /Black=0.10 (very precise) .  Mistake:       	White=1     	Black=1      Inaccurate:     	White=1     	---        OK:         	White=10    	Black=9} 1/2-1/2

[Event "87th Tata Steel Masters 2025"]
[White "Giri,Anish"]
[Black "Praggnanandhaa,Rameshbabu"]
[Site "Wijk aan Zee"]
[Round "9.5"]
[Annotator "TA"]
[Result "1-0"]
[Date "2025.01.28"]
[WhiteElo "2731"]
[BlackElo "2741"]
[PlyCount "125"]
[TimeControl "60"]

{[%evp 11,125,11,9,9,18,12,24,7,14,21,27,10,10,18,27,0,27,35,27,36,30,33,37,39,92,91,134,134,134,150,111,76,60,22,45,46,43,42,38,43,39,44,44,59,66,69,66,72,122,118,118,118,120,103,93,88,171,164,177,176,180,188,169,155,136,151,148,144,130,0,135,0,139,119,126,138,127,105,191,190,181,192,246,246,235,223,339,361,538,533,505,545,531,508,499,503,545,520,491,491,599,588,652,589,671,547,662,649,720,718,633,580,886,841,781,761]} 1. d4 {[%emt 0:0:3]} Nf6 {[%emt 0:1:59]} 2. c4 {[%emt 0:0:7]} e6 {[%emt 0:0:4]} 3. Nf3 {[%emt 0:0:5]} d5 {[%emt 0:0:5]} 4. g3 {[%emt 0:0:4]} Bb4+ {[%emt 0:0:58]} 5. Bd2 {[%emt 0:0:34]} a5 {[%emt 0:0:10]} 6. Bg2 {[%emt 0:0:28]} O-O {[%emt 0:0:40]} 7. Qc1 {[%emt 0:8:6] E11: Bogo-Indian.} Be7 {[%emt 0:8:6]} 8. O-O {[%emt 0:0:0]} c6 {[%emt 0:0:17]} 9. Rd1 {[%emt 0:0:0] White has an edge.} Nbd7 {[%emt 0:0:11]} 10. Bf4 {[%emt 0:0:0]} a4 {[%emt 0:1:34]} 11. Qc2 {[%emt 0:1:52]} h6 {[%emt 0:9:13]} 12. a3 {[%emt 0:7:35]} Qa5 {[%emt 0:8:47]} 13. Nbd2 {[%emt 0:23:48]} Nh5 {[%emt 0:22:2]} 14. Be3 {[%emt 0:0:0]} Bd6 {[%emt 0:5:37]} 15. Rac1 {[%emt 0:5:26]} b5 $146 {[%emt 0:9:18]} (15... f5 16. Nf1 Nhf6 17. cxd5 cxd5 18. Bf4 Bxf4 19. gxf4 Ne4 20. Qc7 Qxc7 21. Rxc7 Nd6 {1-0 Suleymenov,A (2499)-Sargsyan,S (2654) Astana Zhuldyzdary op-A 2023 (6)} )16. c5 {[%emt 0:0:0]} Bb8 {[%emt 0:15:51]} 17. Ne1 {[%emt 0:5:36][%cal Yf3e1,Ye1d3,Yd3b4][%mdl 32]} e5 {[%emt 0:0:0]} ({Black should try} 17... Bb7 $14 )18. Nd3 $16 {[%emt 0:2:51]} Nhf6 {[%emt 0:4:29]} 19. Nb4 {[%emt 0:2:8]} Bb7 {[%emt 0:1:46]} 20. dxe5 {[%emt 0:0:0]} Bxe5 {[%emt 0:0:29]} 21. Nf3 {[%emt 0:0:0]} Rfe8 {[%emt 0:5:24]} 22. Nxe5 {[%emt 0:6:36]} (22. Nh4 Ng4 23. Bd4 Ndf6 24. Nf5 )Rxe5 {[%emt 0:1:38]} 23. Bd4 {[%emt 0:2:22]} Re7 {[%emt 0:11:25]} 24. e3 {[%emt 0:2:25]} Qc7 {[%emt 0:1:48]} 25. Qc3 {[%emt 0:1:54][%cal Yg2d5]} (25. Nxd5 {seems wilder.} Nxd5 26. Bxd5 cxd5 27. c6 )Ne5 {[%emt 0:10:24] Strong Square White (d4)} 26. f4 {[%emt 0:7:48]} Ned7 {[%emt 0:10:48] [#]} 27. Nxd5 $1 {[%emt 0:1:12]} Nxd5 {[%emt 0:0:0]} (27... cxd5 $6 28. c6 $16 )28. Bxd5 {[%emt 0:8:9]} cxd5 {[%emt 0:0:0]} (28... b4 $2 29. Qxb4 cxd5 30. c6 $18 )29. c6 $1 {[%emt 0:1:59]} (29. Bxg7 $2 d4 (29... Qxc5 $2 30. Bd4 $19 )30. Rxd4 Qc6 $19 )f6 {[%emt 0:2:14]} 30. cxb7 {[%emt 0:0:43] White plays on the queen side and is better} Qxb7 {[%emt 0:3:17]} 31. Qc7 {[%emt 0:3:29] Prevents Nb6} Nf8 {[%emt 0:0:0] Black is weak on the dark squares} 32. Qxb7 {[%emt 0:0:6]} Rxb7 {[%emt 0:0:48]} 33. Bc3 {[%emt 0:3:28][%cal Yc3b4]} Rd8 {[%emt 0:0:0]} (33... Rd7 $16 )34. Ba5 $1 $18 {[%emt 0:6:5]} Re8 {[%emt 0:0:0]} 35. Kf2 {[%emt 0:0:0]} (35. Rxd5 Rxe3 36. Rc8 Kf7 $16 )Rd7 {[%emt 0:0:0] [#]} 36. Rc5 $1 {[%emt 0:0:0][%csl Yb5,Yd5]} Rde7 {[%emt 0:1:39]} 37. Rc3 {[%emt 0:0:51]} (37. Rxb5 $6 Rxe3 38. Rd2 (38. Rdxd5 Re2+ 39. Kg1 Ne6 $16 )d4 $16 )Rd7 {[%emt 0:2:39]} 38. Rcd3 {[%emt 0:2:45]} Ra8 {[%emt 0:4:19]} 39. Bb4 {[%emt 0:4:7]} (39. Rxd5 Rxd5 40. Rxd5 Rxa5 $17 )Rad8 {[%emt 0:4:55]} 40. Ba5 {[%emt 0:4:38]} Ra8 {[%emt 0:22:55]} 41. Bb4 {[%emt 0:23:59]} (41. Rxd5 Rxd5 42. Rxd5 Rxa5 $19 )Rad8 {[%emt 0:0:21]} 42. Rc1 $36 {[%emt 0:14:59][%mdl 2048] White is on the roll.} d4 {[%emt 0:1:34]} 43. e4 {[%emt 0:0:0]} g5 {[%emt 0:7:30][%cal Yg7g5,Yg5g4][%mdl 32]} 44. Kf3 {[%emt 0:9:15] White has more active pieces.} Re8 {[%emt 0:9:6]} (44... Ne6 $16 )45. h4 {[%emt 0:10:35]} Ne6 {[%emt 0:7:34]} 46. f5 {[%emt 0:0:0][%cal Yf4f5,Yf5e6,Ye6e7][%mdl 32] White has a king side majority} Nd8 {[%emt 0:0:57]} (46... g4+ $142 47. Kxg4 Nd8 )47. Rc8 {[%emt 0:5:56]} g4+ {[%emt 0:0:0] [#]} 48. Kf4 $1 {[%emt 0:0:0][%cal Yb4c5]} ({Inferior is} 48. Kxg4 Rxe4+ 49. Kf3 Re5 $11 )h5 {[%emt 0:1:51]} (48... Kf7 49. Bc3 (49. Kxg4 Rxe4+ 50. Kh5 Kg7 $14 )Kg8 )49. Bc5 {[%emt 0:3:38]} Rb7 {[%emt 0:4:37]} (49... Kh8 {is a better defense.} 50. Bxd4 (50. Rxd4 Rxd4 51. Bxd4 Ne6+ 52. fxe6 Rxc8 $18 )Kg8 )50. Rxd4 {[%emt 0:0:0] White is clearly winning.} Ne6+ {[%emt 0:0:0]} 51. fxe6 {[%emt 0:0:0]} Rxc8 {[%emt 0:0:0][%mdl 4096] Endgame KRR-KRB} 52. Rd5 {[%emt 0:3:44][%cal Yf4f5] And now Kf5! would win.} Rbc7 {[%emt 0:0:0] [#]} 53. e7 $1 {[%emt 0:0:0] White threatens Rd8+ and mate.} Re8 {[%emt 0:0:0]} 54. Rxh5 {[%emt 0:0:0]} Kf7 {[%emt 0:0:0]} 55. Kxg4 {[%emt 0:0:0]} Ke6 {[%emt 0:0:0]} 56. Rd5 {[%emt 0:0:0]} Rcc8 {[%emt 0:0:0]} 57. Kf4 {[%emt 0:0:0]} Rh8 {[%emt 0:0:0]} 58. h5 {[%emt 0:0:0][%cal Yh4h5,Yh5h6][%mdl 32]} Rhg8 {[%emt 0:0:0]} 59. g4 {[%emt 0:0:0]} Rce8 {[%emt 0:0:0]} 60. Rf5 {[%emt 0:0:0]} Rc8 {[%emt 0:0:15]} 61. Bd4 {[%emt 0:4:11][%csl Yb5,Yf6]} Kxe7 {[%emt 0:0:0]} 62. Bxf6+ {[%emt 0:0:3]} Ke6 {[%emt 0:0:28]} 63. h6 {[%emt 0:0:37] Weighted Error Value: White=0.08 (flawless) /Black=0.38  Mistake:       	---       	Black=7      Inaccurate:     	White=3     	Black=2      OK:         	White=29    	Black=18     Best:        	White=7     	Black=2      Strong:       	White=3     	---} 1-0

[Event "87th Tata Steel Masters 2025"]
[White "Fedoseev,Vladimir"]
[Black "Harikrishna,Pentala"]
[Site "Wijk aan Zee"]
[Round "9.6"]
[Annotator "TA"]
[Result "1-0"]
[Date "2025.01.28"]
[WhiteElo "2717"]
[BlackElo "2695"]
[PlyCount "81"]
[TimeControl "60"]

{[%evp 9,81,0,0,-8,-9,-12,4,0,4,0,4,6,10,5,14,-18,26,16,28,1,14,-6,46,27,66,64,69,56,35,47,43,43,31,31,51,70,77,65,70,0,0,0,7,0,0,0,0,0,0,0,0,0,0,0,27,30,8,19,93,112,112,37,518,518,2021,1627,2473,2356,2398,2271,2303,2315,29984,29985]} 1. d4 {[%emt 0:0:52]} Nf6 {[%emt 0:0:9]} 2. c3 {[%emt 0:0:52]} d5 {[%emt 0:0:15]} 3. Bf4 {[%emt 0:0:13]} c6 {[%emt 0:2:16]} 4. h3 {[%emt 0:3:16]} Bf5 {[%emt 0:0:56]} 5. Nd2 {[%emt 0:6:10]} e6 {[%emt 0:3:41]} 6. Ngf3 {[%emt 0:3:4] D00: 1 d4 d5: Unusual lines.} Bd6 {[%emt 0:3:15]} 7. Ne5 {[%emt 0:3:35]} Qc7 {[%emt 0:5:2]} 8. g4 {[%emt 0:5:52][%cal Yg2g4,Yg4g5][%mdl 32] The position is equal.} Bg6 {[%emt 0:4:35]} 9. e3 {[%emt 0:6:41]} Nbd7 {[%emt 0:2:23]} 10. Nxg6 {[%emt 0:6:13]} hxg6 {[%emt 0:0:46]} 11. Bxd6 {[%emt 0:0:4]} Qxd6 {[%emt 0:0:7]} 12. Qe2 $146 {[%emt 0:0:57]} (12. f4 O-O-O 13. Qf3 Kb8 14. Bd3 c5 15. O-O Ng8 16. Kg2 Ne7 17. Qg3 Ka8 18. Nf3 {1-0 Bertagnolli,A (2344)-Tirelli,M (2234) ITA-ch sf 83rd 2024 (4)} )b5 {[%emt 0:8:21]} 13. g5 {[%emt 0:8:28]} Ng8 {[%emt 0:6:25]} 14. h4 {[%emt 0:0:6]} Ne7 {[%emt 0:1:6]} 15. Qf3 {[%emt 0:6:43]} Rh5 {[%emt 0:8:12]} (15... Nf5 $11 )16. Be2 {[%emt 0:1:56]} Nb6 {[%emt 0:6:18][%cal Yd7b6,Yb6c4,Yc4d2][%mdl 32]} 17. e4 {[%emt 0:2:19][%cal Ye3e4,Ye4e5][%mdl 32]} (17. Qg3 {simplifies} Qxg3 18. fxg3 Rh8 19. e4 )Nc4 {[%emt 0:4:20]} 18. a4 {[%emt 0:9:25]} Nxd2 {[%emt 0:2:51]} (18... Nxb2 19. axb5 cxb5 20. Bxb5+ Kf8 21. Be2 $16 )19. Kxd2 {[%emt 0:0:4]} b4 {[%emt 0:0:43]} (19... dxe4 $6 20. Qxe4 b4 21. Bxh5 gxh5 22. Qe5 bxc3+ 23. bxc3 Qxe5 24. dxe5 O-O-O+ 25. Kc2 $18 )20. e5 {[%emt 0:10:19]} Qb8 {[%emt 0:2:25]} 21. cxb4 {[%emt 0:0:4]} Qxb4+ {[%emt 0:4:25]} 22. Qc3 {[%emt 0:0:3]} Rb8 {[%emt 0:3:10]} 23. Bxh5 {[%emt 0:1:29]} gxh5 {[%emt 0:0:9]} 24. Kc2 {[%emt 0:1:52]} (24. Rhc1 $14 )Nf5 $11 {[%emt 0:1:42]} 25. Rhd1 {[%emt 0:1:12]} (25. Qxc6+ $2 Kd8 26. Qc3 Rc8 $19 (26... Nxd4+ 27. Kd3 $15 ))Nxh4 {[%emt 0:5:19]} 26. Ra3 {[%emt 0:4:42]} Nf5 $1 {[%emt 0:2:44]} 27. Qxc6+ {[%emt 0:3:31]} Kd8 {[%emt 0:5:22]} 28. Rc3 $1 {[%emt 0:0:8]} (28. Qc3 $2 Rc8 29. Kb1 Rxc3 $19 )Qxb2+ {[%emt 0:1:37]} (28... Nxd4+ 29. Rxd4 Qxb2+ 30. Kd1 Qa1+ 31. Ke2 Rb2+ 32. Rd2 Rxd2+ 33. Kxd2 $18 )29. Kd3 {[%emt 0:0:6][%cal Yg5g6] [#] Chess con chili.} Ne7 {[%emt 0:8:8]} 30. Qc7+ {[%emt 0:4:58]} Ke8 {[%emt 0:0:6]} 31. Rdc1 {[%emt 0:1:30]} (31. Qxa7 $5 Ng6 $8 32. Rc2 Nxe5+ 33. dxe5 Qb3+ 34. Kd2 Qb4+ 35. Ke2 Qe4+ 36. Kf1 (36. Kd2 Qb4+ 37. Ke2 Qe4+ 38. Kf1 Qh1+ 39. Ke2 Qe4+ $11 )Qh1+ 37. Ke2 Qe4+ $11 )Rd8 {[%emt 0:0:17]} 32. Ke3 {[%emt 0:4:46][%cal Yc7a5]} g6 {[%emt 0:4:9]} (32... Rc8 33. Qxc8+ Nxc8 34. Rxc8+ Ke7 35. R1c7# )33. a5 {[%emt 0:4:36][%cal Ya5a6]} (33. Qxa7 Nf5+ 34. Kd3 (34. Kf3 Qd2 $15 )Qxf2 )Rd7 {[%emt 0:4:13]} (33... Rc8 34. Qxc8+ Nxc8 35. Rxc8+ Ke7 36. R1c7# )(33... Rb8 $1 $11 {remains equal.} )34. Qc5 $16 {[%emt 0:0:6]} Rb7 {[%emt 0:3:37] [#]} 35. a6 {[%emt 0:3:2]} (35. Qa3 $1 $16 {Threatens to win with a6.} Nf5+ 36. Kd3 Qxa3 (36... Qxf2 37. Rc8+ Kd7 38. Qa4+ Ke7 39. Re8# )37. Rxa3 )Rd7 $2 {[%emt 0:1:26][%mdl 8192] Loses the game.} ({Better is} 35... Rb3 $14 36. Rxb3 Qxb3+ 37. Qc3 Qb6 )36. Qa3 $18 {[%emt 0:2:23]} Qb6 {[%emt 0:3:13]} (36... Nf5+ $142 37. Kd3 Qb5+ (37... Qxf2 38. Rc8+ Rd8 39. Rxd8+ Kxd8 40. Qf8+ Kd7 41. Qc8+ Ke7 42. Rc7# )38. Kd2 Qb6 (38... Nxd4 $2 {is the wrong capture.} 39. Rc8+ Rd8 40. Rxd8+ Kxd8 41. Qf8+ Qe8 42. Rc8+ Kxc8 43. Qxe8+ $18 )39. Rc8+ Rd8 40. Rxd8+ Qxd8 )37. Qa4 {[%emt 0:0:39]} Nf5+ {[%emt 0:3:16]} 38. Kd3 {[%emt 0:0:8] Rc8+ would kill now.} Kf8 {[%emt 0:0:24]} 39. Rb3 {[%emt 0:1:17]} Qd8 {[%emt 0:0:25]} 40. Rb7 {[%emt 0:0:3]} Re7 {[%emt 0:0:43]} 41. Qb4 {[%emt 0:50:8] Weighted Error Value: White=0.08 (flawless) /Black=0.64  Loses game:     	---       	Black=1      Mistake:       	White=2     	Black=3      Inaccurate:     	White=2     	Black=4      OK:         	White=12    	Black=11     Best:        	White=3     	Black=4      Strong:       	White=1     	Black=1} 1-0

[Event "87th Tata Steel Masters 2025"]
[White "Wei,Yi"]
[Black "Erigaisi,Arjun Kumar"]
[Site "Wijk aan Zee"]
[Round "9.7"]
[Annotator "TA"]
[Result "1/2-1/2"]
[Date "2025.01.28"]
[WhiteElo "2751"]
[BlackElo "2801"]
[PlyCount "64"]
[TimeControl "60"]

{[%evp 22,64,37,26,30,28,29,37,43,41,31,31,41,42,41,32,41,9,7,15,12,7,12,11,31,16,14,8,21,22,21,25,22,19,22,0,8,6,5,8,8,8,6,4,12]} 1. e4 {[%emt 0:0:8]} e5 {[%emt 0:0:7]} 2. Nf3 {[%emt 0:0:18]} Nc6 {[%emt 0:0:7]} 3. Bb5 {[%emt 0:0:13]} a6 {[%emt 0:0:8]} 4. Ba4 {[%emt 0:0:9]} Nf6 {[%emt 0:0:7]} 5. O-O {[%emt 0:0:31]} Be7 {[%emt 0:0:14]} 6. Re1 {[%emt 0:0:55]} b5 {[%emt 0:0:9]} 7. Bb3 {[%emt 0:0:4]} O-O {[%emt 0:0:10]} 8. c3 {[%emt 0:2:8]} d5 {[%emt 0:0:24]} 9. exd5 {[%emt 0:0:14]} Nxd5 {[%emt 0:0:7]} 10. Nxe5 {[%emt 0:0:8]} Nxe5 {[%emt 0:0:7]} 11. Rxe5 {[%emt 0:0:5]} Bb7 {[%emt 0:1:7]} 12. d4 {[%emt 0:5:27]} Bf6 {[%emt 0:0:33] C89: Closed Ruy Lopez: Marshall Attack.} 13. Re1 {[%emt 0:0:7]} Re8 {[%emt 0:0:6]} 14. Na3 {[%emt 0:2:38][%cal Yb1a3,Ya3c4,Yc4e5][%mdl 32] 14.Bd2 is vanishing.} b4 {[%emt 0:0:51] White is slightly better.} 15. Nc4 {[%emt 0:3:10]} bxc3 {[%emt 0:0:27][%cal Yf6d4] [#]} 16. Ne5 {[%emt 0:0:17]} Qd6 {[%emt 0:0:46]} 17. f4 {[%emt 0:7:25]} cxb2 {[%emt 0:0:19]} 18. Bxb2 {[%emt 0:0:3]} a5 {[%emt 0:0:8]} 19. a4 {[%emt 0:26:56]} Re7 {[%emt 0:19:43]} 20. Ba3 {[%emt 0:4:18]} Nb4 {[%emt 0:0:10]} 21. Rc1 {[%emt 0:0:28]} Rd8 {[%emt 0:15:21]} 22. Rc5 {[%emt 0:1:19]} Qxd4+ $146 {[%emt 0:20:54]} (22... Qxc5 23. dxc5 Rxd1 24. Rxd1 Nc6 )(22... Bxe5 23. fxe5 Qg6 24. d5 Nd3 25. Rb5 c5 26. Re3 Nf4 27. Qf3 Qb1+ 28. Bd1 Qf5 29. g3 Rxd5 30. gxf4 Qg6+ 31. Kf2 Rxd1 {½-½ Kong,X (2457)-Li,C (2635) TCh-CHN Div A Finals 2024 (3.1)} )23. Qxd4 {[%emt 0:0:39]} Rxd4 {[%emt 0:0:6]} 24. g3 {[%emt 0:32:29]} ({Worse is} 24. Bxf7+ Rxf7 25. Nxf7 (25. Rxa5 Bxe5 26. Raxe5 h6 $19 )Nd3 26. Rxc7 Nxe1 $17 )(24. Rd1 {simplifies} Rxd1+ 25. Bxd1 Bxe5 26. fxe5 Rd7 27. Bb3 )Rd2 {[%emt 0:21:58] [#] White must now prevent ...Nd3.} 25. Rd1 {[%emt 0:1:19]} Rxd1+ {[%emt 0:0:40]} 26. Bxd1 {[%emt 0:0:3]} Bxe5 {[%emt 0:0:59]} 27. fxe5 {[%emt 0:0:5] The position is equal.} Rd7 {[%emt 0:1:36]} 28. Be2 {[%emt 0:6:51][%cal Yc5b5] Black must now prevent Rb5!.} Rd2 {[%emt 0:2:40]} 29. Rxc7 {[%emt 0:3:26]} Rxe2 {[%emt 0:0:14]} 30. Rxb7 {[%emt 0:0:4][%cal Rb7b8]} Kf8 {[%emt 0:2:17]} 31. Bxb4+ {[%emt 0:0:28]} axb4 {[%emt 0:0:7]} 32. Rxb4 {[%emt 0:0:3]} Ra2 {[%emt 0:0:35] Weighted Error Value: White=0.03 (flawless) /Black=0.01 (flawless)   Inaccurate:     	White=1     	---        OK:         	White=12    	Black=10     Best:        	---       	Black=3} 1/2-1/2